[Event "Late-Titled-Tuesday-Blitz-March-05-2024"]
[Site "Chess.com"]
[Date "2024.03.05"]
[Round "3"]
[White "janhelmer03"]
[Black "lluiss"]
[Result "1-0"]
[WhiteElo "2396"]
[BlackElo "2162"]
[TimeControl "180+1"]
[EndTime "14:25:57 PST"]
[Termination "janhelmer03 won by resignation"]

1. Nf3 {[%clk 0:02:59.6]} 1... Nf6 {[%clk 0:02:59.1]} 2. c4 {[%clk 0:02:56.7]}
2... g6 {[%clk 0:02:54.9]} 3. Nc3 {[%clk 0:02:56]} 3... Bg7 {[%clk 0:02:55]} 4.
e4 {[%clk 0:02:31]} 4... O-O {[%clk 0:02:54]} 5. d4 {[%clk 0:02:30.8]} 5... d6
{[%clk 0:02:54.2]} 6. Be2 {[%clk 0:02:31]} 6... e5 {[%clk 0:02:54.4]} 7. O-O
{[%clk 0:02:30.2]} 7... Nc6 {[%clk 0:02:54.5]} 8. d5 {[%clk 0:02:30.6]} 8... Ne7
{[%clk 0:02:54.4]} 9. b4 {[%clk 0:02:31.3]} 9... a5 {[%clk 0:02:51.6]} 10. bxa5
{[%clk 0:02:31.2]} 10... Rxa5 {[%clk 0:02:50.4]} 11. Nd2 {[%clk 0:02:31.3]}
11... b6 {[%clk 0:02:38.1]} 12. Nb3 {[%clk 0:01:53.7]} 12... Ra8 {[%clk
0:02:36.7]} 13. a4 {[%clk 0:01:53.7]} 13... Nd7 {[%clk 0:02:28.5]} 14. a5 {[%clk
0:01:50.4]} 14... bxa5 {[%clk 0:02:28.6]} 15. Nxa5 {[%clk 0:01:36.7]} 15... Nc5
{[%clk 0:02:24.9]} 16. Nc6 {[%clk 0:01:26.4]} 16... Nxc6 {[%clk 0:02:02.2]} 17.
Rxa8 {[%clk 0:01:23.9]} 17... Nd4 {[%clk 0:02:02.4]} 18. Be3 {[%clk 0:01:15.2]}
18... Ncb3 {[%clk 0:01:48.8]} 19. Nb5 {[%clk 0:01:09.4]} 19... Nxb5 {[%clk
0:01:44]} 20. cxb5 {[%clk 0:00:57.7]} 20... Nd4 {[%clk 0:01:44.9]} 21. Qd3
{[%clk 0:00:44]} 21... Qd7 {[%clk 0:01:35.2]} 22. Rc1 {[%clk 0:00:38.9]} 22...
Bb7 {[%clk 0:01:30.3]} 23. Rxf8+ {[%clk 0:00:38.4]} 23... Bxf8 {[%clk
0:01:30.4]} 24. Bxd4 {[%clk 0:00:38.9]} 24... exd4 {[%clk 0:01:29.8]} 25. Qxd4
{[%clk 0:00:38.2]} 1-0

[Event "Late-Titled-Tuesday-Blitz-March-05-2024"]
[Site "Chess.com"]
[Date "2024.03.05"]
[Round "3"]
[White "ccccvhhhj"]
[Black "NoHeThTo"]
[Result "0-1"]
[WhiteElo "2468"]
[BlackElo "2645"]
[TimeControl "180+1"]
[EndTime "14:25:58 PST"]
[Termination "NoHeThTo won by checkmate"]

1. e4 {[%clk 0:02:28.7]} 1... c5 {[%clk 0:02:58.1]} 2. Nf3 {[%clk 0:02:28.5]}
2... d6 {[%clk 0:02:57.7]} 3. d4 {[%clk 0:02:28.8]} 3... cxd4 {[%clk 0:02:58.6]}
4. Nxd4 {[%clk 0:02:29.5]} 4... Nf6 {[%clk 0:02:58.7]} 5. Nc3 {[%clk 0:02:30.2]}
5... a6 {[%clk 0:02:59.2]} 6. Rg1 {[%clk 0:02:30.8]} 6... e6 {[%clk 0:02:55.7]}
7. g4 {[%clk 0:02:31]} 7... b5 {[%clk 0:02:56.2]} 8. g5 {[%clk 0:02:31]} 8...
Nfd7 {[%clk 0:02:56.3]} 9. h4 {[%clk 0:02:30.5]} 9... g6 {[%clk 0:02:52.4]} 10.
Be3 {[%clk 0:02:29.1]} 10... Bb7 {[%clk 0:02:51.2]} 11. f3 {[%clk 0:02:28.3]}
11... Qc7 {[%clk 0:02:51.6]} 12. Qd2 {[%clk 0:02:28.4]} 12... Nc6 {[%clk
0:02:52]} 13. O-O-O {[%clk 0:02:28.7]} 13... Rc8 {[%clk 0:02:50.2]} 14. Kb1
{[%clk 0:02:28.8]} 14... Nce5 {[%clk 0:02:41.6]} 15. f4 {[%clk 0:02:28.7]} 15...
Nc4 {[%clk 0:02:41.5]} 16. Bxc4 {[%clk 0:02:29.4]} 16... Qxc4 {[%clk 0:02:41.8]}
17. e5 {[%clk 0:02:14.2]} 17... d5 {[%clk 0:02:35.9]} 18. Nce2 {[%clk
0:02:06.2]} 18... Bb4 {[%clk 0:02:32.2]} 19. c3 {[%clk 0:02:03.4]} 19... Be7
{[%clk 0:02:32.2]} 20. h5 {[%clk 0:02:03.6]} 20... Qa4 {[%clk 0:02:25.2]} 21.
hxg6 {[%clk 0:02:01.2]} 21... hxg6 {[%clk 0:02:25.4]} 22. Rh1 {[%clk 0:01:59.2]}
22... Rxh1 {[%clk 0:02:25.2]} 23. Rxh1 {[%clk 0:02:00.1]} 23... Nc5 {[%clk
0:02:25.7]} 24. Ng3 {[%clk 0:01:49.9]} 24... Kd7 {[%clk 0:02:13]} 25. b3 {[%clk
0:01:47.6]} 25... Qa3 {[%clk 0:02:13]} 26. Nc2 {[%clk 0:01:45.1]} 26... Nxb3
{[%clk 0:02:13.2]} 27. axb3 {[%clk 0:01:42.5]} 27... Qxb3+ {[%clk 0:02:14.1]}
28. Kc1 {[%clk 0:01:30.4]} 28... Rxc3 {[%clk 0:02:12.4]} 29. Bd4 {[%clk
0:01:26.4]} 29... Ba3+ {[%clk 0:02:10.9]} 30. Kd1 {[%clk 0:01:26.8]} 30... Rd3
{[%clk 0:02:11.1]} 31. Rh7 {[%clk 0:01:20.6]} 31... Rxd2+ {[%clk 0:02:11]} 32.
Kxd2 {[%clk 0:01:21.5]} 32... Qxg3 {[%clk 0:02:11.4]} 33. Rxf7+ {[%clk
0:01:21.1]} 33... Kc8 {[%clk 0:02:11.2]} 34. Ne3 {[%clk 0:01:17]} 34... Bb4+
{[%clk 0:02:08.4]} 35. Kd3 {[%clk 0:01:17]} 35... a5 {[%clk 0:02:04.6]} 36. Rf6
{[%clk 0:01:16]} 36... Qf3 {[%clk 0:02:02.3]} 37. f5 {[%clk 0:01:09.5]} 37...
Qe4+ {[%clk 0:02:01.6]} 38. Ke2 {[%clk 0:01:09.1]} 38... Qxd4 {[%clk 0:01:55.4]}
39. fxg6 {[%clk 0:01:08.7]} 39... Qd2+ {[%clk 0:01:41.5]} 40. Kf3 {[%clk
0:01:08.4]} 40... d4+ {[%clk 0:01:40.8]} 41. Kg4 {[%clk 0:01:09]} 41... Qe2+
{[%clk 0:01:37.6]} 42. Kh4 {[%clk 0:01:08.6]} 42... Be1+ {[%clk 0:01:37.4]} 43.
Kh3 {[%clk 0:01:08.9]} 43... Qxe3+ {[%clk 0:01:37.6]} 44. Kg4 {[%clk 0:01:08.2]}
44... Qg3+ {[%clk 0:01:37.3]} 45. Kh5 {[%clk 0:01:08.6]} 45... Qh4# {[%clk
0:01:37.9]} 0-1

[Event "Late-Titled-Tuesday-Blitz-March-05-2024"]
[Site "Chess.com"]
[Date "2024.03.05"]
[Round "3"]
[White "Onthequiet"]
[Black "reevecanada"]
[Result "0-1"]
[WhiteElo "2442"]
[BlackElo "2612"]
[TimeControl "180+1"]
[EndTime "14:26:10 PST"]
[Termination "reevecanada won by resignation"]

1. d4 {[%clk 0:03:00]} 1... Nf6 {[%clk 0:02:54.6]} 2. Nf3 {[%clk 0:03:00.1]}
2... g6 {[%clk 0:02:53.9]} 3. Bg5 {[%clk 0:03:00.4]} 3... Bg7 {[%clk 0:02:52.8]}
4. Nbd2 {[%clk 0:03:00.9]} 4... d5 {[%clk 0:02:52.2]} 5. c3 {[%clk 0:03:01.4]}
5... O-O {[%clk 0:02:52.7]} 6. e3 {[%clk 0:03:01.8]} 6... c5 {[%clk 0:02:50.4]}
7. dxc5 {[%clk 0:03:01.9]} 7... Nbd7 {[%clk 0:02:50]} 8. b4 {[%clk 0:03:00.7]}
8... h6 {[%clk 0:02:47.5]} 9. Bh4 {[%clk 0:03:00.6]} 9... Ne4 {[%clk 0:02:46.4]}
10. Nxe4 {[%clk 0:02:59.8]} 10... dxe4 {[%clk 0:02:46.1]} 11. Nd4 {[%clk
0:02:59.6]} 11... Ne5 {[%clk 0:02:30.9]} 12. Be2 {[%clk 0:02:55.1]} 12... g5
{[%clk 0:02:24]} 13. Bg3 {[%clk 0:02:54]} 13... f5 {[%clk 0:02:21.4]} 14. Bxe5
{[%clk 0:02:51.5]} 14... Bxe5 {[%clk 0:02:19.1]} 15. Bc4+ {[%clk 0:02:33.1]}
15... Kh8 {[%clk 0:02:16.7]} 16. Qh5 {[%clk 0:02:32.3]} 16... Rf6 {[%clk
0:02:09.8]} 17. Rd1 {[%clk 0:02:25.4]} 17... Qf8 {[%clk 0:01:48.3]} 18. f3
{[%clk 0:01:53.4]} 18... exf3 {[%clk 0:01:41.3]} 19. gxf3 {[%clk 0:01:53.2]}
19... Bd7 {[%clk 0:01:39.5]} 20. f4 {[%clk 0:01:39.3]} 20... gxf4 {[%clk
0:01:31.1]} 21. exf4 {[%clk 0:01:40.2]} 21... Bxf4 {[%clk 0:01:29.3]} 22. Ne2
{[%clk 0:01:39.5]} 22... Be8 {[%clk 0:01:28.4]} 23. Qf3 {[%clk 0:01:37.1]} 23...
Bg5 {[%clk 0:01:26.2]} 24. Qxb7 {[%clk 0:01:35.3]} 24... Bc6 {[%clk 0:01:22.3]}
25. Qxa8 {[%clk 0:00:58]} 25... Qxa8 {[%clk 0:01:17]} 26. O-O {[%clk 0:00:47.5]}
26... Be3+ {[%clk 0:01:13.6]} 0-1

[Event "Late-Titled-Tuesday-Blitz-March-05-2024"]
[Site "Chess.com"]
[Date "2024.03.05"]
[Round "3"]
[White "czasnaszachy"]
[Black "averageFM"]
[Result "0-1"]
[WhiteElo "2425"]
[BlackElo "2586"]
[TimeControl "180+1"]
[EndTime "14:26:19 PST"]
[Termination "averageFM won by resignation"]

1. d4 {[%clk 0:03:00.9]} 1... Nf6 {[%clk 0:02:57]} 2. c4 {[%clk 0:03:00.9]} 2...
e6 {[%clk 0:02:57.3]} 3. Nf3 {[%clk 0:02:59.3]} 3... d5 {[%clk 0:02:56.8]} 4.
Nc3 {[%clk 0:02:56.9]} 4... Bb4 {[%clk 0:02:54.9]} 5. Qa4+ {[%clk 0:02:53]} 5...
Nc6 {[%clk 0:02:54.3]} 6. e3 {[%clk 0:02:51.8]} 6... O-O {[%clk 0:02:53.3]} 7.
Bd2 {[%clk 0:02:51.5]} 7... Bd7 {[%clk 0:02:43.5]} 8. Qc2 {[%clk 0:02:47]} 8...
dxc4 {[%clk 0:02:42.4]} 9. Bxc4 {[%clk 0:02:46.3]} 9... Bd6 {[%clk 0:02:42.2]}
10. a3 {[%clk 0:02:27.7]} 10... e5 {[%clk 0:02:41.4]} 11. dxe5 {[%clk
0:02:22.3]} 11... Nxe5 {[%clk 0:02:40.7]} 12. Nxe5 {[%clk 0:02:20]} 12... Bxe5
{[%clk 0:02:41.6]} 13. O-O-O {[%clk 0:02:19.2]} 13... Qe7 {[%clk 0:02:37.8]} 14.
h3 {[%clk 0:02:10.1]} 14... c6 {[%clk 0:02:34.4]} 15. g4 {[%clk 0:02:02.2]}
15... b5 {[%clk 0:02:34.2]} 16. Ba2 {[%clk 0:02:01.5]} 16... a5 {[%clk
0:02:25.1]} 17. g5 {[%clk 0:02:01.5]} 17... Nh5 {[%clk 0:02:23.4]} 18. f4 {[%clk
0:02:00.9]} 18... Bxc3 {[%clk 0:02:22.3]} 19. Bxc3 {[%clk 0:01:56.8]} 19... Ng3
{[%clk 0:02:14.8]} 20. Rxd7 {[%clk 0:01:33.3]} 20... Qxd7 {[%clk 0:02:07.5]} 21.
Rd1 {[%clk 0:01:33.3]} 21... Qxh3 {[%clk 0:02:05]} 22. Qd3 {[%clk 0:01:00.8]}
22... Qg2 {[%clk 0:01:59.1]} 23. Kb1 {[%clk 0:00:51.1]} 23... Qe4 {[%clk
0:01:55.1]} 24. Qxe4 {[%clk 0:00:46.8]} 24... Nxe4 {[%clk 0:01:54.8]} 25. Be5
{[%clk 0:00:46.9]} 25... Rad8 {[%clk 0:01:52.6]} 26. Rc1 {[%clk 0:00:40.9]}
26... Nd2+ {[%clk 0:01:47.3]} 27. Ka1 {[%clk 0:00:40.3]} 27... a4 {[%clk
0:01:43.8]} 28. Rxc6 {[%clk 0:00:34.4]} 28... Nb3+ {[%clk 0:01:42.2]} 29. Kb1
{[%clk 0:00:29.6]} 29... Rd1+ {[%clk 0:01:38.8]} 30. Kc2 {[%clk 0:00:29.8]}
30... Rc1+ {[%clk 0:01:38.6]} 0-1

[Event "Late-Titled-Tuesday-Blitz-March-05-2024"]
[Site "Chess.com"]
[Date "2024.03.05"]
[Round "3"]
[White "Smoking_Crow"]
[Black "Igor_Lysyj"]
[Result "0-1"]
[WhiteElo "2616"]
[BlackElo "2830"]
[TimeControl "180+1"]
[EndTime "14:26:20 PST"]
[Termination "Igor_Lysyj won by resignation"]

1. d4 {[%clk 0:03:00.9]} 1... Nf6 {[%clk 0:02:59]} 2. c4 {[%clk 0:02:59.8]} 2...
e6 {[%clk 0:02:59.3]} 3. Nc3 {[%clk 0:02:59.1]} 3... Bb4 {[%clk 0:02:58.9]} 4.
a3 {[%clk 0:02:58.6]} 4... Bxc3+ {[%clk 0:02:58.6]} 5. bxc3 {[%clk 0:02:59.5]}
5... c5 {[%clk 0:02:57.5]} 6. f3 {[%clk 0:02:56.7]} 6... Nc6 {[%clk 0:02:56.4]}
7. e4 {[%clk 0:02:56.3]} 7... d6 {[%clk 0:02:56]} 8. Be3 {[%clk 0:02:50.9]} 8...
b6 {[%clk 0:02:55.2]} 9. Bd3 {[%clk 0:02:50]} 9... Na5 {[%clk 0:02:54.6]} 10.
Ne2 {[%clk 0:02:48.4]} 10... Ba6 {[%clk 0:02:52.6]} 11. O-O {[%clk 0:02:34.3]}
11... Qc7 {[%clk 0:02:48.6]} 12. d5 {[%clk 0:02:25.7]} 12... O-O-O {[%clk
0:02:33.4]} 13. Nc1 {[%clk 0:01:58.1]} 13... Bxc4 {[%clk 0:02:23.8]} 14. Bxc4
{[%clk 0:01:53.5]} 14... Nxc4 {[%clk 0:02:24]} 15. Bg5 {[%clk 0:01:50.1]} 15...
exd5 {[%clk 0:02:10.1]} 16. Bxf6 {[%clk 0:01:47.7]} 16... gxf6 {[%clk 0:02:10]}
17. Qxd5 {[%clk 0:01:46.3]} 17... Ne3 {[%clk 0:02:10]} 18. Qb3 {[%clk 0:01:34]}
18... Nxf1 {[%clk 0:02:08.7]} 19. Kxf1 {[%clk 0:01:34.9]} 19... d5 {[%clk
0:02:06.4]} 20. Qa4 {[%clk 0:01:32.1]} 20... dxe4 {[%clk 0:02:04]} 21. Qxe4
{[%clk 0:01:32]} 21... Kb8 {[%clk 0:01:59.7]} 22. Nb3 {[%clk 0:01:27.6]} 22...
Rhe8 {[%clk 0:01:52.5]} 23. Qh4 {[%clk 0:01:19]} 23... Qe5 {[%clk 0:01:46.5]}
24. Qc4 {[%clk 0:01:15.5]} 24... Qd5 {[%clk 0:01:39.5]} 25. Qa4 {[%clk
0:01:11.2]} 25... Qd3+ {[%clk 0:01:34.4]} 26. Kg1 {[%clk 0:01:09.5]} 26... Qxc3
{[%clk 0:01:33]} 27. Kf2 {[%clk 0:01:01.3]} 27... Qe3+ {[%clk 0:01:22.4]} 28.
Kf1 {[%clk 0:00:59.1]} 28... Qd3+ {[%clk 0:01:17]} 29. Kg1 {[%clk 0:00:58.2]}
29... c4 {[%clk 0:01:12.3]} 30. Na5 {[%clk 0:00:51.2]} 30... Qd4+ {[%clk
0:01:11.8]} 0-1

[Event "Late-Titled-Tuesday-Blitz-March-05-2024"]
[Site "Chess.com"]
[Date "2024.03.05"]
[Round "3"]
[White "GrotBchess"]
[Black "miraitrunks"]
[Result "0-1"]
[WhiteElo "2381"]
[BlackElo "2180"]
[TimeControl "180+1"]
[EndTime "14:26:25 PST"]
[Termination "miraitrunks won by resignation"]

1. d4 {[%clk 0:02:59.9]} 1... d5 {[%clk 0:02:59.6]} 2. c4 {[%clk 0:02:57.8]}
2... Bf5 {[%clk 0:02:58.9]} 3. Nc3 {[%clk 0:02:56.1]} 3... e6 {[%clk 0:02:57.5]}
4. Nf3 {[%clk 0:02:56]} 4... Nf6 {[%clk 0:02:57.4]} 5. e3 {[%clk 0:02:56]} 5...
Nbd7 {[%clk 0:02:54.2]} 6. cxd5 {[%clk 0:02:55.4]} 6... Nxd5 {[%clk 0:02:52.5]}
7. Nxd5 {[%clk 0:02:54.1]} 7... exd5 {[%clk 0:02:52.4]} 8. Qb3 {[%clk
0:02:54.7]} 8... Nb6 {[%clk 0:02:49]} 9. a4 {[%clk 0:02:54.8]} 9... a5 {[%clk
0:02:49]} 10. Bd2 {[%clk 0:02:53.5]} 10... Bd6 {[%clk 0:02:46.6]} 11. Rc1 {[%clk
0:02:52.9]} 11... O-O {[%clk 0:02:46]} 12. Be2 {[%clk 0:02:50.5]} 12... Re8
{[%clk 0:02:46]} 13. O-O {[%clk 0:02:49.2]} 13... Bd7 {[%clk 0:02:45.9]} 14. Bb5
{[%clk 0:02:46.5]} 14... Re6 {[%clk 0:02:40.5]} 15. Bxd7 {[%clk 0:02:41.2]}
15... Qxd7 {[%clk 0:02:41.4]} 16. Qb5 {[%clk 0:02:40.4]} 16... Qxb5 {[%clk
0:02:38.3]} 17. axb5 {[%clk 0:02:41.3]} 17... Nc4 {[%clk 0:02:25.9]} 18. Bc3
{[%clk 0:02:40]} 18... a4 {[%clk 0:02:24]} 19. Ra1 {[%clk 0:02:36.4]} 19... a3
{[%clk 0:02:20.8]} 20. bxa3 {[%clk 0:02:34.4]} 20... Rxa3 {[%clk 0:02:20.4]} 21.
Rxa3 {[%clk 0:02:34.1]} 21... Nxa3 {[%clk 0:02:21.3]} 22. Nd2 {[%clk 0:02:31.2]}
22... Nxb5 {[%clk 0:02:20.6]} 23. Bb2 {[%clk 0:02:30.4]} 23... Rh6 {[%clk
0:02:18.4]} 24. g3 {[%clk 0:02:28.2]} 24... f5 {[%clk 0:02:18.7]} 25. Rb1 {[%clk
0:02:26.6]} 25... Kf7 {[%clk 0:02:16.5]} 26. Ba1 {[%clk 0:02:26.3]} 26... c6
{[%clk 0:02:16.6]} 27. Nb3 {[%clk 0:02:26.6]} 27... g5 {[%clk 0:02:14.3]} 28.
Na5 {[%clk 0:02:26]} 28... f4 {[%clk 0:02:11.1]} 29. Nxb7 {[%clk 0:02:22.1]}
29... fxe3 {[%clk 0:02:10.7]} 30. fxe3 {[%clk 0:02:23]} 30... Re6 {[%clk
0:02:10.5]} 31. Kf2 {[%clk 0:02:22.5]} 31... Na3 {[%clk 0:02:05.2]} 32. Rb3
{[%clk 0:02:17.8]} 32... Nc4 {[%clk 0:02:05]} 33. Nd8+ {[%clk 0:02:12.5]} 33...
Ke7 {[%clk 0:02:04.7]} 34. Nxe6 {[%clk 0:02:11.9]} 34... Kxe6 {[%clk 0:02:05.6]}
35. Rb7 {[%clk 0:02:11.4]} 35... Ba3 {[%clk 0:02:02.8]} 36. Kf3 {[%clk
0:01:54.6]} 36... Bc1 {[%clk 0:01:59.3]} 37. Rb3 {[%clk 0:01:54.1]} 37... Nd2+
{[%clk 0:01:57.5]} 38. Ke2 {[%clk 0:01:48.3]} 38... Nxb3 {[%clk 0:01:58.4]} 39.
Bc3 {[%clk 0:01:48.6]} 39... Ba3 {[%clk 0:01:57.6]} 40. Kd3 {[%clk 0:01:47.9]}
40... Nc1+ {[%clk 0:01:51.6]} 41. Kc2 {[%clk 0:01:43.1]} 41... Kf5 {[%clk
0:01:51.5]} 42. Bd2 {[%clk 0:01:37.7]} 42... Ke4 {[%clk 0:01:49.2]} 43. Kd1
{[%clk 0:01:25.8]} 43... Nd3 {[%clk 0:01:39.2]} 44. Ke2 {[%clk 0:01:24.6]} 44...
Bb4 {[%clk 0:01:37.9]} 45. Bxb4 {[%clk 0:01:21.5]} 45... Nxb4 {[%clk 0:01:38.8]}
46. Kd2 {[%clk 0:01:21.9]} 46... Nc2 {[%clk 0:01:36.2]} 47. Kxc2 {[%clk
0:01:22]} 47... Kxe3 {[%clk 0:01:36.4]} 48. Kc3 {[%clk 0:01:22.9]} 48... Ke4
{[%clk 0:01:36.2]} 49. g4 {[%clk 0:01:16.8]} 49... Ke3 {[%clk 0:01:34.3]} 50. h3
{[%clk 0:01:17.4]} 50... Ke4 {[%clk 0:01:34.5]} 51. Kb4 {[%clk 0:01:17.8]} 51...
Kxd4 {[%clk 0:01:34.7]} 52. Kb3 {[%clk 0:01:18.7]} 52... c5 {[%clk 0:01:35.1]}
0-1

[Event "Late-Titled-Tuesday-Blitz-March-05-2024"]
[Site "Chess.com"]
[Date "2024.03.05"]
[Round "3"]
[White "NovakCabarkapa"]
[Black "xakevicius91"]
[Result "1-0"]
[WhiteElo "2822"]
[BlackElo "2580"]
[TimeControl "180+1"]
[EndTime "14:26:26 PST"]
[Termination "NovakCabarkapa won by resignation"]

1. d4 {[%clk 0:03:00.9]} 1... Nf6 {[%clk 0:02:59.8]} 2. Nc3 {[%clk 0:03:01.2]}
2... d5 {[%clk 0:02:59.5]} 3. Bf4 {[%clk 0:03:01.5]} 3... a6 {[%clk 0:02:55.3]}
4. e3 {[%clk 0:03:01.7]} 4... c5 {[%clk 0:02:54.2]} 5. dxc5 {[%clk 0:03:02.6]}
5... Nc6 {[%clk 0:02:53.4]} 6. a3 {[%clk 0:03:03.2]} 6... h6 {[%clk 0:02:37]} 7.
b4 {[%clk 0:03:02.3]} 7... e5 {[%clk 0:02:37.4]} 8. Bg3 {[%clk 0:03:02.5]} 8...
Bf5 {[%clk 0:02:33.4]} 9. Nf3 {[%clk 0:02:57.7]} 9... d4 {[%clk 0:02:11.5]} 10.
exd4 {[%clk 0:02:44.6]} 10... exd4 {[%clk 0:02:12.4]} 11. Na4 {[%clk 0:02:43.4]}
11... Be7 {[%clk 0:02:04.3]} 12. Bd3 {[%clk 0:02:34.6]} 12... Bg4 {[%clk
0:01:43.4]} 13. h3 {[%clk 0:02:29.1]} 13... Bh5 {[%clk 0:01:40.1]} 14. Nb6
{[%clk 0:02:26]} 14... Ra7 {[%clk 0:01:38.9]} 15. O-O {[%clk 0:02:25.8]} 15...
O-O {[%clk 0:01:38.1]} 16. Re1 {[%clk 0:02:22.3]} 16... Nd5 {[%clk 0:01:31.6]}
17. Nxd5 {[%clk 0:02:17.2]} 17... Qxd5 {[%clk 0:01:32.5]} 18. Be4 {[%clk
0:02:15.3]} 18... Qd8 {[%clk 0:01:21.9]} 19. Qd3 {[%clk 0:02:13.5]} 19... Bxf3
{[%clk 0:01:14.1]} 20. Qxf3 {[%clk 0:02:08]} 20... Qd7 {[%clk 0:01:03]} 21. Rad1
{[%clk 0:02:03.3]} 21... Bf6 {[%clk 0:01:00.9]} 22. Bd6 {[%clk 0:02:01.6]} 22...
Re8 {[%clk 0:00:58]} 23. Bf5 {[%clk 0:01:49]} 23... Qd8 {[%clk 0:00:56.7]} 24.
Bc7 {[%clk 0:01:44]} 24... Qa8 {[%clk 0:00:52.7]} 25. Bb6 {[%clk 0:01:41.7]}
25... Ne5 {[%clk 0:00:43.8]} 26. Qg3 {[%clk 0:01:35.8]} 26... Qb8 {[%clk
0:00:43.5]} 27. Bxa7 {[%clk 0:01:33.3]} 27... Qxa7 {[%clk 0:00:44.4]} 28. f4
{[%clk 0:01:30.7]} 28... Qb8 {[%clk 0:00:43.5]} 29. fxe5 {[%clk 0:01:29.7]}
29... Bxe5 {[%clk 0:00:44.4]} 30. Qf3 {[%clk 0:01:17.3]} 30... a5 {[%clk
0:00:40.7]} 31. Kh1 {[%clk 0:01:14.5]} 1-0

[Event "Late-Titled-Tuesday-Blitz-March-05-2024"]
[Site "Chess.com"]
[Date "2024.03.05"]
[Round "3"]
[White "carloseduar100"]
[Black "yuriydovzik"]
[Result "1-0"]
[WhiteElo "2363"]
[BlackElo "2074"]
[TimeControl "180+1"]
[EndTime "14:26:37 PST"]
[Termination "carloseduar100 won on time"]

1. e4 {[%clk 0:02:47.2]} 1... c6 {[%clk 0:02:57.9]} 2. Nf3 {[%clk 0:02:46.7]}
2... g6 {[%clk 0:02:53.8]} 3. Nc3 {[%clk 0:02:46.5]} 3... Bg7 {[%clk 0:02:50.7]}
4. Bc4 {[%clk 0:02:46.6]} 4... b5 {[%clk 0:02:45.8]} 5. Bb3 {[%clk 0:02:46.3]}
5... a5 {[%clk 0:02:41.2]} 6. a4 {[%clk 0:02:41.1]} 6... b4 {[%clk 0:02:40.2]}
7. Ne2 {[%clk 0:02:40.8]} 7... d5 {[%clk 0:02:33.4]} 8. exd5 {[%clk 0:02:40.9]}
8... cxd5 {[%clk 0:02:33]} 9. d4 {[%clk 0:02:41.8]} 9... Nf6 {[%clk 0:02:17.5]}
10. O-O {[%clk 0:02:42.7]} 10... O-O {[%clk 0:02:16]} 11. Nf4 {[%clk 0:02:32.6]}
11... e6 {[%clk 0:02:13.5]} 12. Re1 {[%clk 0:02:32.8]} 12... Ne4 {[%clk
0:02:06.4]} 13. Nd3 {[%clk 0:02:29.9]} 13... Nd7 {[%clk 0:02:01.4]} 14. Nfe5
{[%clk 0:02:22]} 14... Nxe5 {[%clk 0:01:57.2]} 15. dxe5 {[%clk 0:02:22.9]} 15...
Ba6 {[%clk 0:01:53.7]} 16. f3 {[%clk 0:02:22.7]} 16... Qb6+ {[%clk 0:01:42.3]}
17. Be3 {[%clk 0:02:23.1]} 17... d4 {[%clk 0:01:33]} 18. Bf4 {[%clk 0:02:23.3]}
18... Nc5 {[%clk 0:01:25.9]} 19. Nxc5 {[%clk 0:02:20.5]} 19... Qxc5 {[%clk
0:01:25.5]} 20. Qd2 {[%clk 0:02:18.8]} 20... Rfd8 {[%clk 0:01:14.9]} 21. Rad1
{[%clk 0:02:16.6]} 21... d3+ {[%clk 0:01:04.5]} 22. Kh1 {[%clk 0:02:16.4]} 22...
Qc7 {[%clk 0:00:48.7]} 23. cxd3 {[%clk 0:02:09.7]} 23... Rxd3 {[%clk 0:00:46.1]}
24. Qc2 {[%clk 0:02:10.1]} 24... Qxc2 {[%clk 0:00:36.1]} 25. Bxc2 {[%clk
0:02:10.2]} 25... Rxd1 {[%clk 0:00:32.1]} 26. Rxd1 {[%clk 0:02:11.1]} 26... Rc8
{[%clk 0:00:28.7]} 27. h4 {[%clk 0:02:08.1]} 27... Rxc2 {[%clk 0:00:13.8]} 28.
Rd6 {[%clk 0:02:08.3]} 28... Bb7 {[%clk 0:00:06.1]} 29. Rd7 {[%clk 0:02:08.1]}
29... g5 {[%clk 0:00:02.1]} 30. Bxg5 {[%clk 0:02:01.5]} 30... h6 {[%clk
0:00:01.6]} 31. Be3 {[%clk 0:01:46.8]} 31... Bc6 {[%clk 0:00:01]} 32. Rd8+
{[%clk 0:01:44.9]} 1-0

[Event "Late-Titled-Tuesday-Blitz-March-05-2024"]
[Site "Chess.com"]
[Date "2024.03.05"]
[Round "3"]
[White "CarrotsandPizza"]
[Black "kleinebeer98"]
[Result "0-1"]
[WhiteElo "2589"]
[BlackElo "2885"]
[TimeControl "180+1"]
[EndTime "14:26:44 PST"]
[Termination "kleinebeer98 won on time"]

1. e4 {[%clk 0:03:00.9]} 1... e5 {[%clk 0:02:59.6]} 2. Nf3 {[%clk 0:03:00.4]}
2... Nc6 {[%clk 0:03:00.4]} 3. Nc3 {[%clk 0:03:00.6]} 3... f5 {[%clk 0:03:00.4]}
4. exf5 {[%clk 0:02:56.1]} 4... Nf6 {[%clk 0:03:00.5]} 5. Bb5 {[%clk 0:02:54.9]}
5... e4 {[%clk 0:03:00.3]} 6. Nh4 {[%clk 0:02:35.9]} 6... Nd4 {[%clk 0:02:55.3]}
7. Ba4 {[%clk 0:02:28.7]} 7... c6 {[%clk 0:02:51.1]} 8. d3 {[%clk 0:02:27.2]}
8... d5 {[%clk 0:02:46.2]} 9. O-O {[%clk 0:02:26.7]} 9... Nxf5 {[%clk
0:02:42.3]} 10. Nxf5 {[%clk 0:02:22.5]} 10... Bxf5 {[%clk 0:02:43.2]} 11. dxe4
{[%clk 0:02:22.5]} 11... Nxe4 {[%clk 0:02:44.1]} 12. Nxd5 {[%clk 0:02:09.1]}
12... Bd6 {[%clk 0:02:43.1]} 13. Ne3 {[%clk 0:02:01.7]} 13... Bg6 {[%clk
0:02:38.6]} 14. Bb3 {[%clk 0:01:58.7]} 14... Qc7 {[%clk 0:02:31.6]} 15. Qg4
{[%clk 0:01:50.5]} 15... Bxh2+ {[%clk 0:02:20.6]} 16. Kh1 {[%clk 0:01:49.8]}
16... Bd6 {[%clk 0:02:21.1]} 17. Nf5 {[%clk 0:01:34.5]} 17... Nf6 {[%clk
0:02:21.7]} 18. Re1+ {[%clk 0:01:26.2]} 18... Kf8 {[%clk 0:02:21.4]} 19. Qf3
{[%clk 0:01:16]} 19... Bf7 {[%clk 0:02:16.8]} 20. Bg5 {[%clk 0:00:21.9]} 20...
Be5 {[%clk 0:02:11.2]} 21. Re2 {[%clk 0:00:16.9]} 21... h6 {[%clk 0:02:08.1]}
22. Bh4 {[%clk 0:00:16.3]} 22... Re8 {[%clk 0:02:04.3]} 23. Rae1 {[%clk
0:00:15.5]} 23... Bh5 {[%clk 0:02:03.8]} 24. Bxf6 {[%clk 0:00:09.6]} 24... Bxf3
{[%clk 0:02:02.1]} 25. Bxg7+ {[%clk 0:00:09.8]} 25... Qxg7 {[%clk 0:01:58]} 26.
Nxg7 {[%clk 0:00:06.9]} 26... Bxe2 {[%clk 0:01:44.5]} 27. Nxe8 {[%clk
0:00:06.7]} 27... Bh5 {[%clk 0:01:45.4]} 28. Rxe5 {[%clk 0:00:02.5]} 28... Bxe8
{[%clk 0:01:45.8]} 29. g3 {[%clk 0:00:03.1]} 29... Rh7 {[%clk 0:01:44.1]} 30.
Kg2 {[%clk 0:00:03.2]} 30... Rd7 {[%clk 0:01:44.7]} 31. Kf1 {[%clk 0:00:02]}
31... b6 {[%clk 0:01:40.6]} 32. Ke2 {[%clk 0:00:02]} 32... a5 {[%clk 0:01:39.2]}
33. a3 {[%clk 0:00:01.7]} 33... b5 {[%clk 0:01:39.4]} 34. Re3 {[%clk 0:00:01.5]}
34... a4 {[%clk 0:01:37.9]} 35. Be6 {[%clk 0:00:01.5]} 35... Rd6 {[%clk
0:01:38.5]} 36. Bg4 {[%clk 0:00:01.7]} 36... Bg6 {[%clk 0:01:38.9]} 0-1